lending/lending_fUSD_20240410
["ID","MTS","AMOUNT","RATE_DAILY","PERIOD"]
[322100614,1712770238965,-610.395995,0.000209,2]
[322100615,1712770238975,-165.53259309,0.000209,2]
[322100616,1712770238984,-9986.46704659,0.000209,2]
[322100617,1712770238993,-3226.0611329,0.000209,2]
[322100618,1712770239002,-425.75453347,0.00020985,2]
[322100619,1712770239012,-155.0,0.00020995,2]
[322100620,1712770239022,-278.15686245,0.00020995,2]
[322100621,1712770239032,-2170.28018332,0.00020995,2]
[322100622,1712770239043,-326.67757,0.00020995,2]
[322100623,1712770239053,-215.43117381,0.00020996,2]
[322100624,1712770239062,-28133.30668789,0.00020996,2]
[322100625,1712770239071,-4601.17241875,0.00020996,2]
[322100626,1712770239081,-640.08300789,0.00020996,2]
[322100627,1712770239091,-404.51357839,0.00020998,2]
[322100628,1712770239101,-407.23303885,0.00020998,2]
[322100629,1712770239111,-155.39919849,0.00020998,2]
[322100630,1712770239122,-3369.40436091,0.00020998,2]
[322100631,1712770239131,-404.03202112,0.00020998,2]
[322100632,1712770239140,-193.67481927,0.00020998,2]
[322100633,1712770239149,-179.89989495,0.00020998,2]
[322100634,1712770239158,-155.0,0.00020998,2]
[322100635,1712770239170,-1872.5933,0.00020998,2]
[322100636,1712770239178,-2172.31241401,0.00020998,2]
[322100637,1712770239187,-201.57223821,0.00020998,2]
[322100638,1712770239197,-839005.03904808,0.00020998,2]
[322100639,1712770239206,-1415.92618397,0.00020999,2]
[322100640,1712770239215,-18247.93347717,0.00020999,2]
[322100641,1712770239225,-198.55405157,0.00021,2]
[322100642,1712770239234,-10142130.7425902,0.00021,2]
[322100644,1712770239630,-138342.00000004,0.00021,2]
[322100645,1712770239644,-40175.19855117,0.00021,2]
[322100646,1712770239657,-2427.94838451,0.00021,2]
[322100647,1712770239669,-3685.85901113,0.00021,2]
[322100648,1712770239680,-394.06102047,0.00021,2]
[322100653,1712770240075,-650.93233166,0.00020632,2]
[322100654,1712770240084,-245.89264445,0.00021,2]
[322100655,1712770240109,-388839.78392691,0.00021,2]
[322100656,1712770240136,-3189.09856962,0.00021,2]
[322100657,1712770240147,-783.33969214,0.00021,2]
[322100658,1712770240159,-53959.54138037,0.00021,2]
[322100659,1712770240176,-342209.93858851,0.00021,2]
[322100660,1712770240192,-1292.65,0.00021,2]
[322100671,1712770242813,-537.16417105,0.00021,2]
[322100673,1712770242873,-567.738,0.00021,2]
[322100674,1712770242934,-58900.01871227,0.00021,2]
[322100675,1712770243282,-460.4138208,0.00021,2]
[322100707,1712770246263,-650.93233166,0.00020677,2]
[322100708,1712770246275,-5032.10903548,0.00021,2]
[322100718,1712770247225,-155.47530298,0.00020999,2]
[322100719,1712770247236,-1446.9318505,0.00021,2]
[322100720,1712770247272,-348.53284088,0.00021,2]
[322100721,1712770247284,-3843.27264307,0.00021,2]
[322100722,1712770247308,-1232.59825842,0.00021,2]
[322100723,1712770259855,290.42891801,0.00017594,2]
[322100724,1712770260222,557.42117934,0.00017594,2]
[322100725,1712770263075,274.37878966,0.00017594,2]
[322100726,1712770282852,163.51,0.00016359,2]
[322100727,1712770283216,15843.09318196,0.00017594,2]
[322100728,1712770285326,938.37870965,0.00017594,2]
[322100729,1712770585644,193.09,0.00016876,2]
[322100730,1712770643784,174.68,0.00018687,2]
[322100731,1712770643975,174.68,0.00018692,2]
[322100732,1712770644153,174.68,0.00018697,2]
[322100733,1712770644358,174.68,0.00018701,2]
[322100734,1712770644782,174.68,0.00018706,2]
[322100735,1712770645028,174.68,0.00018711,2]
[322100736,1712770645477,174.68,0.00018716,2]
[322100737,1712770645745,174.68,0.00018721,2]
[322100738,1712770645971,174.68,0.00018726,2]
[322100739,1712770646176,174.68,0.00018731,2]
[322100740,1712770646455,174.68,0.00018736,2]
[322100741,1712770646766,174.68,0.00018741,2]
[322100742,1712770646842,174.68,0.00018746,2]
[322100743,1712770647068,174.68,0.00018751,2]
[322100744,1712770647294,174.68,0.00018755,2]
[322100745,1712770647513,174.68,0.0001876,2]
[322100746,1712770647737,174.68,0.00018765,2]
[322100747,1712770648142,174.68,0.0001877,2]
[322100748,1712770648366,174.68,0.00018775,2]
[322100749,1712770648602,174.68,0.0001878,2]
[322100750,1712770674317,320.74241418,0.00016876,2]
[322100751,1712770750059,800.0,0.00018521,2]
[322100752,1712770778829,304.6613345,0.00019112,120]
[322100753,1712770791963,14172.9,0.00018555,2]
[322100754,1712770799631,164.53,0.00018695,2]
[322100755,1712770817769,164.76,0.00018402,2]
[322100756,1712770825607,23900.0,0.00018469,2]
[322100757,1712770849579,500.0,0.00018442,2]
[322100758,1712770871243,406.54,0.00018409,2]
[322100759,1712770871659,500.0,0.00018409,2]
[322100760,1712770922118,568.71,0.00018427,2]
[322100761,1712770988030,2976.12,0.00018371,2]
[322100762,1712770991777,2350.74431941,0.00019001,2]
[322100763,1712770997004,201.9156312,0.00019001,2]
[322100764,1712770999601,194.00573824,0.00019001,2]
[322100765,1712771002974,708.23085285,0.00019001,2]
[322100766,1712771004756,250.0,0.00018447,2]
[322100767,1712771011087,2203.09868202,0.00019001,2]
[322100768,1712771011502,404.87415105,0.00019001,2]
[322100769,1712771013045,23306.3841991,0.00019001,2]
[322100770,1712771018507,4323.08544763,0.00019001,2]
[322100771,1712771032568,167.0153964,0.00019001,2]
[322100772,1712771039337,408.23178636,0.00019001,2]
[322100773,1712771055267,198.01,0.00016627,2]
[322100774,1712771055481,198.01,0.00018891,2]
[322100777,1712771103205,150.0,0.00018986,2]
[322100779,1712771118930,2175.08703921,0.00019002,2]
[322100782,1712771136656,194.00573824,0.00019002,2]
[322100783,1712771138587,1969.91143067,0.00019002,2]
[322100785,1712771165858,155.0,0.00019002,2]
[322100786,1712771201724,174.69,0.00018526,2]
[322100787,1712771201973,174.69,0.00018549,2]
[322100788,1712771202191,174.69,0.00018572,2]
[322100789,1712771202420,174.69,0.00018595,2]
[322100790,1712771202621,174.69,0.00018618,2]
[322100791,1712771231458,360.0,0.00018551,2]
[322100792,1712771241306,760.85767988,0.00018618,2]
[322100793,1712771323824,164.53,0.00018584,2]
[322100794,1712771336406,23890.0,0.00018462,2]
[322100810,1712771373021,203.27,0.00018449,2]
[322100812,1712771415137,167.0153964,0.00019002,2]
[322100857,1712771432894,-407.61661465,0.00019003,2]
[322100858,1712771432904,-1097.64,0.0001901,2]
[322100859,1712771432914,-167.49,0.00019013,2]
[322100860,1712771432924,-174.14,0.00019067,2]
[322100861,1712771432934,-164.53,0.00019068,2]
[322100862,1712771432943,-328.46705249,0.00019118,2]
[322100863,1712771432954,-853.18,0.00019121,2]
[322100864,1712771432963,-300.0,0.00019131,2]
[322100865,1712771432973,-150.0,0.00019131,2]
[322100866,1712771432984,-150.0,0.00019131,2]
[322100867,1712771432994,-5912.68270607,0.00019132,2]
[322100868,1712771433003,-355.27,0.0001914,2]
[322100869,1712771433013,-999.99,0.0001914,2]
[322100870,1712771433022,-150.99,0.0001914,2]
[322100871,1712771433032,-2162.2,0.0001914,2]
[322100872,1712771433042,-1082.35,0.00019178,2]
[322100873,1712771433052,-398.92968877,0.0001925,2]
[322100874,1712771433061,-18314.24747391,0.000193,2]
[322100875,1712771433071,-522.07209279,0.000193,2]
[322100876,1712771433081,-309.17672877,0.000193,2]
[322100877,1712771433091,-3397.877071,0.00019347,2]
[322100878,1712771433101,-339.5886304,0.0001939,2]
[322100879,1712771433110,-166.21475189,0.00019398,2]
[322100880,1712771433120,-160884.75880324,0.00019399,2]
[322100881,1712771433141,-4323.23949527,0.00019399,2]
[322100882,1712771433160,-379921.78282442,0.00019399,2]
[322100883,1712771433170,-154404.01593721,0.000194,2]
[322100884,1712771433182,-176109.9999931,0.000194,2]
[322100885,1712771433193,-1795.15488874,0.000194,2]
[322100886,1712771433204,-23307.49083156,0.000194,2]
[322100887,1712771433214,-5806.13527407,0.00019436,2]
[322100888,1712771433224,-1000.0,0.00019443,2]
[322100889,1712771433233,-312.61768174,0.00019444,2]
[322100890,1712771433243,-212.87195549,0.00019444,2]
[322100891,1712771433253,-386.52060247,0.00019444,2]
[322100892,1712771433262,-2132.1797721,0.00019444,2]
[322100893,1712771433272,-705.76070351,0.00019444,2]
[322100894,1712771433281,-545.18931143,0.00019444,2]
[322100895,1712771433291,-118.64968935,0.00019444,2]
[322100896,1712771433366,-275.18691325,0.00019444,2]
[322100897,1712771433412,-1020.44455907,0.00019444,2]
[322100898,1712771433422,-263.9939255,0.00019444,2]
[322100899,1712771433433,-756.64682377,0.00019444,2]
[322100900,1712771433443,-218.81597769,0.00019444,2]
[322100901,1712771433453,-15.31577422,0.00019444,2]
[322100902,1712771433467,-194.29897424,0.00019444,2]
[322100903,1712771433477,-746.18272373,0.00019444,2]
[322100904,1712771433487,-155.0,0.00019444,2]
[322100905,1712771433499,-161.79781133,0.00019444,2]
[322100906,1712771433509,-233.69415684,0.00019444,2]
[322100907,1712771433519,-284.84926446,0.00019444,2]
[322100908,1712771433530,-221.81819831,0.00019445,2]
[322100909,1712771433540,-3110.16566602,0.00019445,2]
[322100910,1712771433586,-4299.08963738,0.00019445,2]
[322100928,1712771438447,-10830.28033816,0.00019445,2]
[322100930,1712771438457,-500.0,0.00019446,2]
[322100932,1712771438466,-500.0,0.00019446,2]
[322100934,1712771438476,-500.0,0.00019446,2]
[322100936,1712771438485,-235.19434772,0.00019446,2]
[322100937,1712771438495,-500.0,0.00019446,2]
[322100938,1712771438503,-500.0,0.00019446,2]
[322100939,1712771438512,-500.0,0.00019446,2]
[322100940,1712771438521,-500.0,0.00019446,2]
[322100941,1712771438531,-192698.28554581,0.00019447,2]
[322100942,1712771438540,-18314.24747385,0.00019478,2]
[322100943,1712771438549,-3397.87707097,0.0001952,2]
[322100944,1712771438558,-522.07209272,0.00019529,2]
[322100945,1712771438567,-164.53,0.00019552,2]
[322100946,1712771438576,-151.76338009,0.000196,2]
[322100947,1712771438585,-18314.24747385,0.00019656,2]
[322100948,1712771438594,-3397.87707097,0.00019692,2]
[322100949,1712771438603,-151.76338005,0.00019725,2]
[322100950,1712771438612,-243.425172,0.00019726,2]
[322100951,1712771438621,-522.07209272,0.00019757,2]
[322100952,1712771438630,-217.23,0.0001983,2]
[322100953,1712771438639,-18314.24747385,0.00019833,2]
[322100954,1712771438648,-309.17672874,0.00019833,2]
[322100955,1712771438657,-151.76338005,0.0001985,2]
[322100956,1712771438666,-155.92538713,0.00019859,2]
[322100957,1712771438675,-329.50753555,0.00019859,2]
[322100958,1712771438684,-205.16730609,0.00019859,2]
[322100959,1712771438693,-734.78105628,0.0001986,2]
[322100960,1712771438703,-3397.87707097,0.00019865,2]
[322100961,1712771438712,-500.0,0.00019897,2]
[322100962,1712771438721,-11353.899,0.00019897,2]
[322100963,1712771438730,-151.76338005,0.00019975,2]
[322100964,1712771438739,-425.75453347,0.00019985,2]
[322100965,1712771438749,-522.07209272,0.00019986,2]
[322100966,1712771438758,-278.15686245,0.00019995,2]
[322100967,1712771438767,-155.0,0.00019995,2]
[322100968,1712771438776,-155.68969577,0.00019995,2]
[322100969,1712771438786,-155.39919849,0.00019995,2]
[322100970,1712771438798,-362.22013382,0.00019995,2]
[322100971,1712771438807,-215.43117381,0.00019995,2]
[322100972,1712771438816,-5533.20289702,0.00019995,2]
[322100973,1712771438826,-283.49472265,0.00019995,2]
[322100974,1712771438836,-155.62920748,0.00019995,2]
[322100975,1712771438846,-3369.40436091,0.00019996,2]
[322100976,1712771438855,-179.89989495,0.00019996,2]
[322100977,1712771438864,-201.57223821,0.00019996,2]
[322100978,1712771438874,-155.0,0.00019998,2]
[322100979,1712771438883,-390.27515298,0.0002,2]
[322100980,1712771438893,-640.08300789,0.0002,2]
[322100981,1712771438902,-404.51357839,0.0002,2]
[322100982,1712771438912,-1000.0,0.0002,2]
[322100983,1712771438921,-1000.0,0.0002,2]
[322100984,1712771438930,-1045.19799734,0.0002,2]
[322100985,1712771438940,-1000.0,0.0002,2]
[322100986,1712771438949,-171.52528067,0.0002,2]
[322100987,1712771438959,-1028.0,0.0002,2]
[322100988,1712771438968,-288.10829613,0.0002,2]
[322100989,1712771438978,-18314.24747385,0.00020011,2]
[322100990,1712771438987,-3397.87707097,0.00020037,2]
[322100991,1712771438996,-151.76338005,0.000201,2]
[322100992,1712771439006,-1167.0,0.000201,2]
[322100993,1712771439015,-167.18,0.00020168,2]
[322100994,1712771439024,-18314.24747385,0.00020189,2]
[322100995,1712771439033,-331.34,0.00020192,2]
[322100996,1712771439042,-150.0,0.00020192,2]
[322100997,1712771439051,-348.87,0.00020192,2]
[322100998,1712771439060,-1039.97,0.00020192,2]
[322100999,1712771439070,-303.84,0.00020192,2]
[322101000,1712771439078,-150.0,0.00020192,2]
[322101001,1712771439088,-520.17,0.00020192,2]
[322101002,1712771439097,-150.0,0.00020192,2]
[322101003,1712771439106,-150.0,0.00020192,2]
[322101004,1712771439115,-267.64,0.00020192,2]
[322101005,1712771439124,-150.0,0.00020192,2]
[322101006,1712771439134,-150.0,0.00020192,2]
[322101007,1712771439144,-162.27,0.00020192,2]
[322101008,1712771439153,-713.51,0.00020192,2]
[322101009,1712771439163,-150.0,0.00020192,2]
[322101010,1712771439172,-417.92,0.00020192,2]
[322101011,1712771439182,-150.0,0.00020192,2]
[322101012,1712771439192,-162.27,0.00020192,2]
[322101013,1712771439203,-150.0,0.00020192,2]
[322101014,1712771439212,-300.0,0.00020192,2]
[322101015,1712771439222,-150.0,0.00020192,2]
[322101016,1712771439232,-417.92,0.00020192,2]
[322101017,1712771439241,-150.0,0.00020192,2]
[322101018,1712771439250,-150.0,0.00020192,2]
[322101019,1712771439259,-162.27,0.00020192,2]
[322101020,1712771439268,-150.0,0.00020192,2]
[322101021,1712771439277,-150.0,0.00020192,2]
[322101022,1712771439286,-150.0,0.00020192,2]
[322101023,1712771439295,-417.92,0.00020192,2]
[322101024,1712771439304,-150.0,0.00020192,2]
[322101025,1712771439313,-160.92,0.00020192,2]
[322101026,1712771439323,-150.0,0.00020192,2]
[322101027,1712771439332,-300.0,0.00020192,2]
[322101028,1712771439341,-150.0,0.00020192,2]
[322101029,1712771439350,-150.0,0.00020192,2]
[322101030,1712771439359,-150.0,0.00020192,2]
[322101031,1712771439369,-150.0,0.00020192,2]
[322101032,1712771439378,-150.0,0.00020192,2]
[322101033,1712771439387,-150.0,0.00020192,2]
[322101034,1712771439397,-3397.87707097,0.0002021,2]
[322101035,1712771439406,-522.07209272,0.00020214,2]
[322101036,1712771439415,-151.76338005,0.00020225,2]
[322101037,1712771439425,-152.71317314,0.00020282,2]
[322101038,1712771439435,-1000.0,0.000203,2]
[322101039,1712771439444,-1000.0,0.000203,2]
[322101040,1712771439454,-175.06096649,0.000203,2]
[322101041,1712771439462,-12663.68400562,0.000203,2]
[322101042,1712771439473,-169.15456791,0.000203,2]
[322101043,1712771439482,-222.96584302,0.000203,2]
[322101044,1712771439492,-151.76338005,0.0002035,2]
[322101045,1712771439501,-12663.6840056,0.00020355,2]
[322101046,1712771439511,-18314.24747385,0.00020367,2]
[322101047,1712771439521,-309.17672874,0.00020367,2]
[322101048,1712771439532,-3397.87707097,0.00020382,2]
[322101049,1712771439541,-339.5886304,0.0002039,2]
[322101050,1712771439550,-198.55405159,0.000204,2]
[322101051,1712771439561,-908615.97377793,0.000204,3]
[322101052,1712771439570,-2591.35640081,0.000204,2]
[322101053,1712771439579,-152.7131731,0.00020406,2]
[322101054,1712771439588,-12663.6840056,0.00020409,2]
[322101055,1712771439598,-522.07209272,0.00020443,2]
[322101056,1712771439607,-12663.6840056,0.00020464,2]
[322101057,1712771439617,-151.76338005,0.00020475,2]
[322101058,1712771439628,-174.38863377,0.00020475,2]
[322101059,1712771439638,-60791.8615,0.00020488,2]
[322101060,1712771439648,-8675.4595,0.00020488,2]
[322101061,1712771439659,-180.11,0.00020489,2]
[322101062,1712771439669,-339.5886304,0.0002049,2]
[322101063,1712771439678,-1674676.81080197,0.000205,2]
[322101064,1712771439687,-4601.17241875,0.000205,2]
[322101065,1712771439696,-12663.6840056,0.00020518,2]
[322101066,1712771439706,-518.0,0.0002052,2]
[322101067,1712771439715,-549.0,0.0002052,2]
[322101068,1712771439724,-152.7131731,0.00020531,2]
[322101069,1712771439734,-18314.24747385,0.00020544,2]
[322101070,1712771439743,-243.425172,0.00020548,2]
[322101071,1712771439753,-3397.87707097,0.00020555,2]
[322101072,1712771439762,-12663.6840056,0.00020573,2]
[322101073,1712771439771,-12663.6840056,0.00020627,2]
[322101074,1712771439780,-3130.95049862,0.00020647,2]
[322101075,1712771439791,-2591.3564008,0.0002065,2]
[322101077,1712771439801,-152.7131731,0.00020655,2]
[322101078,1712771439813,-522.07209272,0.00020671,2]
[322101079,1712771439822,-811.68940594,0.00020675,2]
[322101081,1712771439832,-366.46665112,0.00020675,2]
[322101082,1712771439843,-844.34598028,0.00020675,2]
[322101083,1712771439853,-2349.01416901,0.00020676,2]
[322101084,1712771439862,-341.82490571,0.00020676,2]
[322101085,1712771439872,-12663.6840056,0.00020682,2]
[322101086,1712771439883,-1378.32290634,0.000207,2]
[322101087,1712771439892,-1378.32290634,0.000207,2]
[322101088,1712771439901,-1378.32290634,0.000207,2]
[322101089,1712771439911,-1378.32290634,0.000207,2]
[322101090,1712771439921,-1378.32290634,0.000207,2]
[322101091,1712771439931,-1378.32290634,0.000207,2]
[322101093,1712771439940,-1378.32290634,0.000207,2]
[322101094,1712771439949,-1378.32290634,0.000207,2]
[322101095,1712771439958,-1378.32290634,0.000207,2]
[322101096,1712771439967,-1378.32290634,0.000207,2]
[322101097,1712771439979,-1378.32290634,0.000207,2]
[322101098,1712771439989,-1378.32290634,0.000207,2]
[322101100,1712771439999,-1378.32290634,0.000207,2]
[322101102,1712771440009,-1378.32290634,0.000207,2]
[322101104,1712771440018,-1378.32290634,0.000207,2]
[322101105,1712771440028,-1378.32290634,0.000207,2]
[322101106,1712771440038,-1378.32290634,0.000207,2]
[322101107,1712771440047,-1378.32290634,0.000207,2]
[322101108,1712771440056,-1378.32290634,0.000207,2]
[322101109,1712771440065,-1378.32290634,0.000207,2]
[322101110,1712771440074,-1378.32290634,0.000207,2]
[322101111,1712771440084,-1378.32290634,0.000207,2]
[322101112,1712771440094,-1378.32290634,0.000207,2]
[322101113,1712771440103,-1378.32290634,0.000207,2]
[322101114,1712771440112,-1378.32290634,0.000207,2]
[322101115,1712771440122,-1378.32290634,0.000207,2]
[322101116,1712771440131,-1378.32290634,0.000207,2]
[322101117,1712771440140,-1378.32290634,0.000207,2]
[322101118,1712771440150,-1378.32290634,0.000207,2]
[322101119,1712771440159,-1378.32290634,0.000207,2]
[322101120,1712771440169,-1378.32290634,0.000207,2]
[322101121,1712771440177,-1378.32290634,0.000207,2]
[322101122,1712771440187,-1378.32290634,0.000207,2]
[322101123,1712771440195,-1378.32290634,0.000207,2]
[322101124,1712771440204,-1378.32290634,0.000207,2]
[322101125,1712771440213,-1378.32290634,0.000207,2]
[322101126,1712771440222,-1378.32290634,0.000207,2]
[322101127,1712771440231,-1378.32290634,0.000207,2]
[322101128,1712771440240,-1378.32290634,0.000207,2]
[322101129,1712771440249,-1378.32290634,0.000207,2]
[322101130,1712771440258,-1378.32290634,0.000207,2]
[322101131,1712771440266,-1378.32290634,0.000207,2]
[322101132,1712771440276,-1378.32290634,0.000207,2]
[322101133,1712771440285,-1378.32290634,0.000207,2]
[322101134,1712771440294,-1378.32290634,0.000207,2]
[322101135,1712771440303,-1378.32290634,0.000207,2]
[322101136,1712771440313,-1378.32290634,0.000207,2]
[322101137,1712771440322,-1378.32290634,0.000207,2]
[322101138,1712771440331,-1378.32290634,0.000207,2]
[322101139,1712771440341,-1378.32290634,0.000207,2]
[322101140,1712771440350,-18314.24747385,0.00020722,2]
[322101141,1712771440359,-3397.87707097,0.00020727,2]
[322101142,1712771440471,-12663.6840056,0.00020736,2]
[322101143,1712771440497,-152.7131731,0.0002078,2]
[322101144,1712771440507,-12663.6840056,0.00020791,2]
[322101145,1712771440517,-800.0,0.00020836,2]
[322101146,1712771440528,-12663.6840056,0.00020845,2]
[322101147,1712771440538,-390.0,0.0002085,2]
[322101148,1712771440548,-360.0,0.00020869,2]
[322101149,1712771440558,-76535.948,0.000209,2]
[322101150,1712771440568,-174.38863376,0.000209,2]
[322101151,1712771440577,-12663.6840056,0.000209,2]
[322101152,1712771440586,-3397.87707097,0.000209,2]
[322101153,1712771440595,-172.81913631,0.000209,2]
[322101154,1712771440604,-172.81913631,0.000209,2]
[322101155,1712771440613,-172.81913631,0.000209,2]
[322101156,1712771440625,-172.81913631,0.000209,2]
[322101157,1712771440635,-1367.1326,0.000209,2]
[322101158,1712771440645,-18314.24747385,0.000209,2]
[322101159,1712771440654,-2591.3564008,0.000209,2]
[322101160,1712771440663,-309.17672874,0.000209,2]
[322101161,1712771440672,-522.07209272,0.000209,2]
[322101162,1712771440681,-152.7131731,0.00020904,2]
[322101163,1712771440690,-186.9981662,0.00020998,2]
[322101164,1712771440699,-155.0,0.00020998,2]
[322101165,1712771440709,-331.65010547,0.00020998,2]
[322101166,1712771440718,-1137.50096702,0.00020998,2]
[322101167,1712771440727,-348.70168286,0.00020998,2]
[322101168,1712771440736,-1089110.41320555,0.00020999,2]
[322101169,1712771440746,-619.95708018,0.00020999,2]
[322101170,1712771440756,-1229.40569774,0.00020999,2]
[322101171,1712771440766,-247.79504742,0.00020999,2]
[322101172,1712771440776,-1002.7971,0.00020999,2]
[322101173,1712771440787,-1000.0,0.00020999,2]
[322101174,1712771440799,-11500624.13793049,0.00021,2]
[322101175,1712771440808,-714.96210186,0.00021,2]
[322101176,1712771440817,-397.92945511,0.00021,2]
[322101177,1712771440828,-155.0,0.00021,2]
[322101178,1712771440838,-1270140.45449377,0.00021,2]
[322101179,1712771440893,-118343.65225254,0.00021,2]
[322101180,1712771440905,-2535.08706433,0.00021,2]
[322101181,1712771440917,-1039.11162996,0.00021,2]
[322101182,1712771440928,-838.86498246,0.00021,2]
[322101183,1712771441168,-20839.42451028,0.00021,2]
[322101184,1712771441198,-942.88266595,0.00021,2]
[322101185,1712771441210,-2451.27271428,0.00021,2]
[322101186,1712771441222,-10788.32107449,0.00021,2]
[322101187,1712771441234,-15250.434077,0.00021,2]
[322101188,1712771441254,-524.79530536,0.00021,2]
[322101189,1712771441265,-460.63094984,0.00021,2]
[322101190,1712771441289,-666.14594998,0.00021,2]
[322101191,1712771441300,-3001.42345312,0.00021,2]
[322101192,1712771441311,-1499.97790222,0.00021,2]
[322101193,1712771441323,-458.68758806,0.00021,2]
[322101194,1712771441334,-321978.59153369,0.00021,2]
[322101195,1712771441344,-1147.94373023,0.00021,2]
[322101206,1712771443344,-1098.2308072,0.00021,2]
[322101207,1712771443356,-1305.69044592,0.00021,2]
[322101208,1712771443375,-1425.95166666,0.00021,2]
[322101209,1712771443397,-1066.39346037,0.00021,2]
[322101210,1712771443410,-694.3937,0.00021,2]
[322101211,1712771443439,-1458.78306831,0.00021,2]
[322101212,1712771443458,-69512.46509454,0.00021,2]
[322101213,1712771443496,-870.49805174,0.00021,2]
[322101225,1712771443510,-3149.22220706,0.00021,2]
[322101228,1712771443709,-1718.2306774,0.00021,2]
[322101237,1712771447284,-161.57245943,0.00019446,2]
[322101238,1712771447295,-150.0,0.00020192,2]
[322101239,1712771447305,-825.16619437,0.00020999,2]
[322101240,1712771447315,-929.3252662,0.00021,2]
[322101244,1712771643776,229.71,0.00017776,2]
[322101245,1712772099617,218.22,0.00017267,2]
[322101246,1712772378646,2776.87759788,0.00017267,2]
[322101247,1712772385308,951.45483861,0.00016404,2]
[322101248,1712772387527,18763.7425748,0.00017267,2]
[322101249,1712772398536,1500.0,0.00017267,2]
[322101250,1712772403222,357.83040702,0.00016404,2]
[322101251,1712772407462,15069.08111176,0.00017267,2]
[322101252,1712772422254,2322.416118,0.00017267,2]
[322101388,1712772446263,600.0,0.00017267,2]
[322101495,1712772608772,207.3,0.00017103,2]
[322101497,1712772623028,200.0,0.00018979,2]
[322101498,1712772632229,-151.76338005,0.00019015,2]
[322101499,1712772632239,-110.91510845,0.00019104,2]
[322101500,1712772632251,-139.08489155,0.00019104,2]
[322101501,1712772632262,-1133.15510845,0.00019114,2]
[322101503,1712772632279,-580.86539022,0.00019114,2]
[322101506,1712772632295,-489.07818335,0.00019114,2]
[322101508,1712772632305,-500.0,0.00019115,2]
[322101509,1712772632314,-1002.71,0.00019124,2]
[322101510,1712772632323,-349.56,0.00019125,2]
[322101511,1712772632332,-3421.65,0.00019151,2]
[322101512,1712772632341,-216.0,0.00019158,2]
[322101513,1712772632351,-200.0,0.00019172,2]
[322101514,1712772632360,-173.87,0.00019287,2]
[322101515,1712772632369,-207.3,0.00019367,2]
[322101516,1712772632378,-150.0,0.00019443,2]
[322101517,1712772632392,-151.76338005,0.00019443,2]
[322101518,1712772632402,-499.99,0.00019444,2]
[322101519,1712772632412,-2914.93,0.00019444,2]
[322101520,1712772632421,-784.0,0.0001954,2]
[322101521,1712772632431,-167.1,0.00019721,2]
[322101522,1712772632442,-151.76338005,0.00019872,2]
[322101523,1712772632452,-3617.12293998,0.000199,3]
[322101524,1712772632462,-150.99,0.000199,2]
[322101525,1712772632472,-640.46092048,0.00020199,2]
[322101526,1712772632481,-8675.4595,0.000202,2]
[322101527,1712772632491,-1792.5696,0.000202,2]
[322101528,1712772632500,-1858.32202191,0.000202,2]
[322101529,1712772632509,-2500.0,0.000202,2]
[322101530,1712772632518,-261.03604636,0.00020262,2]
[322101531,1712772632527,-1858.3220219,0.00020278,2]
[322101532,1712772632536,-21654.71772023,0.000203,2]
[322101533,1712772632549,-140738.000003,0.000203,2]
[322101534,1712772632574,-669.25583994,0.000203,2]
[322101535,1712772632585,-4160.23152884,0.000203,2]
[322101537,1712772632614,-638.49582452,0.000203,2]
[322101539,1712772632625,-2444.26708576,0.000203,2]
[322101542,1712772632640,-4000.0,0.000203,2]
[322101544,1712772632651,-593.41505923,0.000203,2]
[322101662,1712772638542,-48600.47029613,0.000203,2]
[322101663,1712772638554,-4262.59674235,0.000203,2]
[322101665,1712772638563,-7500.0,0.000203,2]